Cogmind - Beta 13 @@@ ROGUE MODE // 2024.05.10 @ 12:31:51 Player: puppuppit Result: Destroyed by G-50 Soldier with Heavy Laser Performance ------------- Evolutions (4) 2000 Regions Visited (23) 4600 Robots Destroyed (484) 2420 Value Destroyed (21891) 21891 Prototype IDs (59) 1180 Alien Tech Used (0) 0 Bonus (14873) 14873 TOTAL SCORE: 46964 Bonus ------- Triggered High Security 2500 High Alert Combat Kills 9190 Follower Combat Kills 2420 Entered Garrisons 1200 Aligned with FarCom 300 Met Imprinter 300 Acquired ECA 300 Friendly Fire -1337 Cogmind --------- Core Integrity 0/850 Matter 22/300 Energy 98/100 System Corruption 2% Temperature Cool (24) Movement Flying (32) Location -6/Garrison Parts ------- > --- POWER (1) -------- (None) > --- PROPULSION (6) --- Cooled Cesium-ion Thruster > --- UTILITY (5) ------ Improved System Shield > --- WEAPON (3) ------- (None) > --- INVENTORY (5) ---- Encrypted Comm Array Relay Coupler [Proto] (9) Relay Coupler [Proto] (9) System Restoration Module Peak State ------------ > --- POWER ------------ Fission Core > --- PROPULSION ------- Improved Heavy Treads Improved Heavy Treads Improved Heavy Treads > --- UTILITY ---------- Advanced Heat Sink Recoil Nullifier Layered Heavy Armor Plating Improved Hacking Suite > --- WEAPON ----------- Mass Driver Mass Driver Mass Driver > --- INVENTORY -------- Nuclear Pulse Thruster Nuclear Pulse Thruster Encrypted Comm Array Recoil Nullifier Long-range Missile Launcher [Rating: 95] Favorites ----------- Power Light Deuterium Engine Engine Light Deuterium Engine Power Core Micro Nuclear Core Reactor Particle Reactor Propulsion VTOL Module Treads Improved Heavy Treads Leg VSS Leg Wheel Armored Wheel Hover Unit Backup Propulsion I Flight Unit VTOL Module Utility Medium Storage Unit Device Advanced Heat Sink Storage Medium Storage Unit Processor Targeting Computer Hackware Advanced System Shield Protection Layered Heavy Armor Plating Weapon Light Assault Rifle Energy Gun Heavy Laser Energy Cannon Cooled Plasma Cannon Ballistic Gun Light Assault Rifle Ballistic Cannon Mass Driver Launcher Rocket Launcher Special Weapon RU-N14's Throwing Claymores Slashing Weapon Chainsword Build | -11 -10 -10 -9 -9 -9 -8 -8 -8 -8 -8 -8 -7 -7 -7 -7 -7 -6 -6 -6 -6 -6 -6 -6 ------- Run | Yrd Mat Min Mat Min Exi Min Mat Gar Mat Gar Mat Fac Gar Fac Low Zio Pro Fac Gar Fac Gar Fac Gar Slots Evolved 8 | . . . 2 . . . 2 . . . . 2 . . . . . 2 . . . . . Power . | . . . . . . . . . . . . . . . . . . . . . . . . Propulsion 4 | . . . 2 . . . . . . . . 1 . . . . . 1 . . . . . Utility 3 | . . . . . . . 1 . . . . 1 . . . . . 1 . . . . . Weapon 1 | . . . . . . . 1 . . . . . . . . . . . . . . . . Parts Attached 549 | 9 5 16 47 2 1 6 17 10 8 75 7 67 52 28 . 6 6 29 56 48 39 14 1 Power 63 | 1 1 3 8 1 . . 1 2 . 5 . 7 7 4 . . . 6 7 1 9 . . Engine 22 | 1 1 3 7 1 . . . 1 . 1 . 2 . 1 . . . 1 2 . 1 . . Core 35 | . . . 1 . . . 1 1 . 4 . 5 7 3 . . . 5 3 1 4 . . Reactor 6 | . . . . . . . . . . . . . . . . . . . 2 . 4 . . Propulsion 152 | 4 3 6 19 1 1 . . . 2 27 2 23 15 4 . . . 7 20 12 4 2 . Treads 6 | . . . . . . . . . . 3 . . . . . . . . 3 . . . . Leg 21 | . . . 9 1 . . . . . 10 1 . . . . . . . . . . . . Wheel 5 | 4 . . 1 . . . . . . . . . . . . . . . . . . . . Hover 10 | . 3 1 . . . . . . . 2 1 3 . . . . . . . . . . . Flight 110 | . . 5 9 . 1 . . . 2 12 . 20 15 4 . . . 7 17 12 4 2 . Utility 135 | 2 1 . 6 . . 1 5 . 5 15 5 17 9 10 . . 2 5 9 23 12 8 . Device 58 | 1 . . . . . 1 1 . 1 6 1 6 4 3 . . . 3 3 15 5 8 . Storage 5 | 1 1 . 2 . . . . . . . . 1 . . . . . . . . . . . Processor 17 | . . . 1 . . . 1 . . 2 2 2 2 2 . . . 2 1 1 1 . . Hackware 10 | . . . 1 . . . 2 . . . . 2 . 1 . . 1 . . 3 . . . Protection 45 | . . . 2 . . . 1 . 4 7 2 6 3 4 . . 1 . 5 4 6 . . Artifact . | . . . . . . . . . . . . . . . . . . . . . . . . Weapon 199 | 2 . 7 14 . . 5 11 8 1 28 . 20 21 10 . 6 4 11 20 12 14 4 1 Energy Gun 16 | . . 2 1 . . . 2 . . 9 . 1 . 1 . . . . . . . . . Energy Cannon 3 | . . . . . . . . . . . . . . . . . . 1 2 . . . . Ballistic Gun 123 | 2 . 5 13 . . 3 9 5 1 19 . 15 15 4 . . 1 6 9 7 9 . . Ballistic Cannon 4 | . . . . . . . . . . . . . 1 . . . . . 3 . . . . Launcher 40 | . . . . . . 2 . 3 . . . 4 5 2 . . . 3 6 5 5 4 1 Special Weapon 7 | . . . . . . . . . . . . . . . . 3 3 1 . . . . . Impact Weapon . | . . . . . . . . . . . . . . . . . . . . . . . . Slashing Weapon 6 | . . . . . . . . . . . . . . 3 . 3 . . . . . . . Piercing Weapon . | . . . . . . . . . . . . . . . . . . . . . . . . Special Melee Weapon . | . . . . . . . . . . . . . . . . . . . . . . . . Unidentified Prototypes 15 | . . . 4 . . . 1 . 1 . . 3 1 2 . 1 . . . 2 . . . Parts Lost 98 | . 1 5 11 1 . . . 1 . 22 2 13 5 8 . . 1 2 7 3 4 1 11 Power 8 | . . . 1 . . . . . . 2 1 1 1 . . . . . . . 1 . 1 Propulsion 53 | . 1 2 7 1 . . . . . 13 1 6 3 2 . . . 1 4 3 3 1 5 Utility 15 | . . . 2 . . . . . . 1 . 2 1 2 . . 1 1 2 . . . 3 Weapon 22 | . . 3 1 . . . . 1 . 6 . 4 . 4 . . . . 1 . . . 2 Highest Loss Streak 11 | . 1 3 7 1 . . . 1 . 8 2 6 2 4 . . 1 1 2 2 1 1 11 To Critical Strikes . | . . . . . . . . . . . . . . . . . . . . . . . . Average Slot Usage (%) 86 | . 72 81 96 99 83 66 69 71 65 86 99 84 91 95 92 94 80 88 85 87 87 86 50 Engine 3 | . . 11 8 11 11 11 . 4 . 3 . 1 . . . . . . 1 . . . . Core 4 | . . . 2 . . . 8 4 9 5 8 3 5 6 7 7 7 5 4 6 5 . . Leg 7 | . . . 20 32 16 . . . . 21 32 3 . . . . . . . . . . . Hover 1 | . 26 4 . . . . . . . 1 3 5 . . . . . . . . . . . Flight 21 | . . 23 20 . 5 11 9 9 9 4 . 25 35 37 38 38 38 37 27 38 39 39 22 Device 5 | . . . . . . 2 1 . . 4 2 6 3 7 7 7 7 6 9 13 11 13 8 Storage 6 | . 14 14 11 11 11 11 9 9 9 9 9 7 7 4 . . . . . . . . . Processor 1 | . . . . . . . . . . . 6 . 5 . . . . 6 7 . . . . Hackware 5 | . . . 2 . . . 12 18 8 . . 7 7 9 15 15 15 10 3 4 6 6 6 Protection 5 | . . . 6 11 11 8 2 . 4 7 9 3 4 6 7 7 6 6 7 8 6 6 2 Ballistic Gun 17 | . 28 27 21 22 22 18 23 26 26 20 27 15 11 15 . . 2 3 9 14 14 13 5 Naked Turns . | . . . . . . . . . . . . . . . . . . . . . . . . Heaviest Build 59 | 13 18 15 22 22 22 22 29 28 44 49 37 34 30 26 18 28 32 34 59 42 44 44 44 Greatest Support 225 | 26 20 12 39 46 50 50 50 50 50 69 53 41 30 26 21 21 21 34 225 48 55 44 50 Greatest Overweight (x) 7 | . . 1 1 . . . . . 7 6 . 1 1 1 . 1 1 . 3 1 1 1 . Average Overweight (x) . | . . . . . . . . . . . . . . . . . . . . . . . . Largest Inventory Capacity 10 | 8 10 10 10 10 10 10 10 10 10 10 10 10 8 8 5 5 5 5 5 5 5 5 5 Average Capacity 8 | 7 9 10 10 10 10 10 10 10 10 10 10 8 8 7 5 5 5 5 5 5 5 5 5 Most Carried 10 | 3 9 10 10 10 10 10 10 10 10 10 10 10 8 8 5 5 5 5 5 5 5 5 5 Average Carried 7 | . 7 9 9 9 9 10 9 9 9 9 9 7 7 6 4 4 4 4 4 4 4 4 4 Final Capacity 10 | 8 10 10 10 10 10 10 10 10 10 10 10 10 8 5 5 5 5 5 5 5 5 5 5 Final Carried 10 | 3 8 10 10 10 10 10 10 10 10 10 10 9 8 4 5 5 5 5 5 5 5 5 4 Class Distribution -------------------- 21% | Scavenger-Sprinter 17% | Scavenger-Skirmisher 15% | Scavenger-Mutant 12% | Mutant 12% | Sprinter 6% | Hacker-Skirmisher 5% | Hacker-Sprinter 4% | Skirmisher 3% | Hacker-Mutant Dominant Class ---------------- Mutant | -10/Materials Scavenger-Mutant | -10/Mines Mutant | -9/Materials Scavenger-Mutant | -9/Mines Scavenger-Mutant | -9/Exiles Mutant | -8/Mines Hacker-Skirmisher | -8/Materials Hacker-Skirmisher | -8/Garrison Skirmisher | -8/Materials Scavenger-Skirmisher | -8/Garrison Scavenger-Skirmisher | -8/Materials Scavenger-Mutant | -7/Factory Scavenger-Sprinter | -7/Garrison Scavenger-Sprinter | -7/Factory Hacker-Sprinter | -7/Lower Caves Hacker-Mutant | -7/Zion Hacker-Sprinter | -6/Proximity Caves Scavenger-Sprinter | -6/Factory Scavenger-Sprinter | -6/Garrison Sprinter | -6/Factory Sprinter | -6/Garrison Sprinter | -6/Factory Mutant | -6/Garrison Resources | -11 -10 -10 -9 -9 -9 -8 -8 -8 -8 -8 -8 -7 -7 -7 -7 -7 -6 -6 -6 -6 -6 -6 -6 ----------- Run | Yrd Mat Min Mat Min Exi Min Mat Gar Mat Gar Mat Fac Gar Fac Low Zio Pro Fac Gar Fac Gar Fac Gar Matter Collected 16354 | 246 184 377 1308 251 10 301 438 860 345 1550 715 2014 1730 943 . 65 60 392 1522 1306 1486 243 8 Remotely 179 | . . . . . . 85 94 . . . . . . . . . . . . . . . . Salvage Created 17709 | 165 249 241 1990 768 . 448 609 699 281 1595 1249 1905 1057 879 . . 146 535 1434 1416 1307 712 24 Parts 980 | 14 17 27 143 23 . 20 37 42 16 111 67 101 64 43 . . 4 32 50 82 48 37 2 Haulers Intercepted 20 | . . . 5 . . . 3 . . . 1 2 . 4 . . . . . 4 . 1 . Recyclers Shooed 17 | 1 2 1 1 1 . . 2 . 1 . . 3 . 2 . . . 2 . . . 1 . Parts Field Recycled . | . . . . . . . . . . . . . . . . . . . . . . . . Retrieved Matter . | . . . . . . . . . . . . . . . . . . . . . . . . Parts Self-Destructed 2 | . . . . . . . . . . . . . . . . . 2 . . . . . . Prevented . | . . . . . . . . . . . . . . . . . . . . . . . . Kills | -11 -10 -10 -9 -9 -9 -8 -8 -8 -8 -8 -8 -7 -7 -7 -7 -7 -6 -6 -6 -6 -6 -6 -6 ------- Run | Yrd Mat Min Mat Min Exi Min Mat Gar Mat Gar Mat Fac Gar Fac Low Zio Pro Fac Gar Fac Gar Fac Gar Combat Hostiles Destroyed 334 | . 2 14 30 6 . 7 6 27 6 41 15 34 33 14 . . 4 10 25 15 30 13 2 Melee 4 | . . . . . . . . . . . . . . 3 . . . . 1 . . . . Guns 222 | . 2 14 30 6 . 4 6 19 6 40 15 27 14 2 . . . 2 6 6 23 . . Cannons 13 | . . . . . . . . . . . . . 8 . . . . 1 4 . . . . AOE 94 | . . . . . . 3 . 8 . . . 7 11 9 . . 4 7 14 9 7 13 2 Classes Destroyed 22 | 3 3 . 6 . . . . . 1 3 1 . . 1 . . . . 2 . . 2 . Worker 40 | 2 1 . 7 3 . . 3 . 1 . 4 8 . 3 . . . 2 . 6 . . . Builder 20 | . . . 4 1 . . 1 . . . 1 4 . . . . . 2 . 7 . . . Tunneler 6 | 3 . . . 1 . . . . . . . 1 . . . . . . . 1 . . . Hauler 20 | . . . 5 . . . 3 . . . 1 2 . 4 . . . . . 4 . 1 . Recycler 31 | 1 2 . 2 7 . 4 3 . . . 2 4 . 4 . . . 1 . 1 . . . Carrier 1 | . . . . . . . . . . . . . . . . . . . . . . 1 . Mechanic 1 | . . . . . . . . . . . 1 . . . . . . . . . . . . Operator 10 | . . . 5 . . . . . . . 2 . . . . . . . . 1 . 2 . Watcher 16 | . 1 . 3 . . . 3 . . . 1 2 . 1 . . . . 1 3 1 . . Swarmer 105 | . 1 13 4 6 . 3 2 12 . 13 . 3 15 . . . . 3 11 3 12 2 2 Saboteur 1 | . . . . . . . . . . . . . . . . . . . 1 . . . . Grunt 134 | . 1 1 18 . . 3 3 10 4 10 11 22 7 9 . . . 5 7 5 11 7 . Brawler 9 | . . . 1 . . . . 2 . . 1 2 2 . . . . . 1 . . . . Duelist 4 | . . . 1 . . 1 . 1 . . 1 . . . . . . . . . . . . Protector 4 | . . . . . . . . . . . . . . 1 . . . . . 1 . 2 . Sentry 39 | . . . 6 . . . 1 2 1 10 2 4 5 1 . . . . 2 2 3 . . Specialist 5 | . . . . . . . . . . 4 . . 1 . . . . . . . . . . Hunter 20 | . . . . . . . . . . 1 . 2 4 . . . 4 2 1 2 2 2 . Programmer 12 | . . . . . . . . . . 3 . 1 1 2 . . . . 1 2 2 . . Heavy 2 | . . . . . . . . . 1 . . . . 1 . . . . . . . . . Behemoth 1 | . . . . . . . . . . . . . . . . . . . 1 . . . . Thug 2 | . . . . . . . . . . . . . . . . . . . . 1 1 . . Mutant 1 | . . . . . . . . . . . . . . . . . . . . . . 1 . Best Kill Streak 15 | 4 4 3 6 3 . 3 9 6 2 7 6 15 6 8 . . 2 9 7 10 6 12 2 Combat Bots Only 11 | . 1 3 5 3 . 3 2 6 2 7 5 10 6 5 . . 2 5 7 6 5 11 2 Max Kills in Single Turn 7 | 1 2 2 2 2 . 1 4 4 1 2 2 4 3 2 . . 2 3 6 4 3 7 2 Gunslinging 1 | . . 1 . 1 . . . . . 1 1 1 . . . . . . . 1 . . . Exploded 6 | . . . . . . 1 . 4 . . . 2 3 2 . . 2 3 6 4 3 6 2 Melee 1 | . . . . . . . . . . . . . . 1 . . . . 1 . . . . Uniques/NPCs Destroyed . | . . . . . . . . . . . . . . . . . . . . . . . . Combat | -11 -10 -10 -9 -9 -9 -8 -8 -8 -8 -8 -8 -7 -7 -7 -7 -7 -6 -6 -6 -6 -6 -6 -6 -------- Run | Yrd Mat Min Mat Min Exi Min Mat Gar Mat Gar Mat Fac Gar Fac Low Zio Pro Fac Gar Fac Gar Fac Gar Hostile Shots Fired 1836 | . 44 66 130 34 . 42 10 38 64 278 36 249 164 53 . . 18 27 147 93 156 61 126 Missed 711 | . 19 17 44 6 . 17 4 14 26 84 9 131 58 15 . . 5 8 51 56 65 23 59 Damage Taken 15739 | . 282 400 1240 234 . 399 136 355 647 2784 490 1500 1182 986 . . 236 368 1302 543 1247 454 954 Core 2431 | . 72 126 148 21 . 49 . 44 58 297 66 193 252 175 . . 61 40 222 47 58 29 473 Absorbed by Shields 281 | . . . . . . . . . . 39 . . 95 . . . . 10 6 . 48 . 83 Reduced by Siege Mode 14 | . . . . . . . . . . . . . . . . . . . 14 . . . . Redirected to Shielding 51 | . . . 8 4 . 10 . . . . . . . . . . . . 22 7 . . . Ignored by Resistances 240 | . . . . . . . . . . . . 15 . 24 . . . . . . 80 90 31 Regen/Repaired (Parts) 678 | . . . 127 . . . 53 . 58 . . 150 . 25 . . . 165 . 57 . 43 . Core Remaining (%) 36 | 100 . 20 . . . 45 . . . . 15 . . . . . 2 . . . . . . Volleys Fired 1379 | 21 36 41 152 39 . 31 29 89 21 191 50 104 100 53 . . 4 25 161 83 116 27 6 Largest 3 | 2 2 2 2 2 . 2 3 3 3 3 3 3 3 3 . . 2 3 3 3 3 3 1 Hottest 171 | 40 40 60 46 46 . 56 111 83 75 159 88 97 112 87 . . . 106 171 104 104 109 49 Shots Fired 2835 | 42 72 70 304 78 . 60 78 177 62 411 146 235 209 131 . . 7 40 243 170 237 57 6 Gun 2494 | 42 72 70 304 78 . 50 78 169 62 411 146 220 114 117 . . . 10 108 161 230 47 5 Cannon 237 | . . . . . . . . . . . . . 90 . . . . 24 123 . . . . Launcher 96 | . . . . . . 10 . 8 . . . 15 5 14 . . . 5 12 9 7 10 1 Special 8 | . . . . . . . . . . . . . . . . . 7 1 . . . . . Kinetic 2549 | 42 72 66 304 78 . 50 77 169 62 331 146 220 204 117 . . . 10 158 161 230 47 5 Thermal 169 | . . . . . . . 1 . . 71 . . . . . . . 24 73 . . . . Explosive 104 | . . . . . . 10 . 8 . . . 15 5 14 . . 7 6 12 9 7 10 1 Electromagnetic 13 | . . 4 . . . . . . . 9 . . . . . . . . . . . . . Robot Hit Streak 33 | 7 10 8 16 8 . 17 6 13 7 18 6 13 9 9 . . 3 5 33 8 11 6 1 Robot Miss Streak 9 | 6 7 3 4 4 . 3 6 5 4 6 8 5 8 6 . . 1 2 5 4 9 3 3 Penetration Max 1 | . . . . . . . . . . 1 1 1 1 1 . . . 1 1 1 1 1 . Secondary Targets 35 | . 1 2 3 1 . 1 . 4 2 10 4 5 . . . . . . . 1 1 . . Max Gunslinging Chain 2 | . 1 1 1 1 . 1 . 1 1 1 1 2 . . . . . . . 1 1 . . Shots Hit Robots 1639 | 25 43 44 204 47 . 37 46 89 39 219 82 150 95 98 . . 3 18 150 91 121 37 1 Core Hits 946 | 10 17 21 86 21 . 30 30 51 15 85 53 114 61 66 . . 6 26 65 73 66 47 3 Critical Kills 18 | . . . . . . . . . . . 9 3 . . . . . . 2 2 2 . . Critical Parts Destroyed 19 | . 1 1 1 . . 1 . . . . 9 1 . . . . . . 1 1 2 . 1 Critical Strikes 46 | . 1 1 1 . . 1 . . . . 18 4 2 2 . . 2 . 6 3 4 . 1 Meltdown 1 | . . . . . . . . . . . . . . . . . . . 1 . . . . Destroy 36 | . 1 1 1 . . 1 . . . . 18 4 . . . . . . 2 3 4 . 1 Blast 5 | . . . . . . . . . . . . . 2 . . . . . 3 . . . . Sever 4 | . . . . . . . . . . . . . . 2 . . 2 . . . . . . Melee Attacks 26 | . . . . . . . . . . . . . . 15 . 11 . . . . . . . Impact . | . . . . . . . . . . . . . . . . . . . . . . . . Slashing 26 | . . . . . . . . . . . . . . 15 . 11 . . . . . . . Piercing . | . . . . . . . . . . . . . . . . . . . . . . . . Sneak Attacks 2 | . . . . . . . . . . . . . . 2 . . . . . . . . . Combat Hostiles . | . . . . . . . . . . . . . . . . . . . . . . . . Follow-up Attacks 2 | . . . . . . . . . . . . . . 2 . . . . . . . . . Damage Inflicted 47857 | 225 449 352 2695 781 . 1044 1202 2389 770 3085 1553 5998 3268 3425 . . 630 1659 6304 3803 3604 4365 256 Guns 25474 | 225 345 352 2695 781 . 482 805 1591 770 3085 1547 3502 1331 1368 . . . 182 1035 1861 2575 918 24 Cannons 4508 | . . . . . . . . . . . . . 954 . . . . 324 3230 . . . . Explosions 17237 | . 104 . . . . 562 397 798 . . . 2496 983 1572 . . 487 1153 2039 1942 1029 3443 232 Melee 485 | . . . . . . . . . . . . . . 485 . . . . . . . . . Ramming 10 | . . . . . . . . . . . 6 . . . . . . . . . . 4 . Kinetic 27192 | 225 345 329 2695 781 . 482 789 1591 770 2508 1547 3502 2285 1368 . . . 182 2415 1861 2575 918 24 Thermal 4364 | . . . . . . . 16 . . 451 . . . . . . . 324 1850 367 . 1356 . Explosive 15222 | . . . . . . 562 397 798 . . . 2496 983 1572 . . 487 1153 2039 1508 1029 1966 232 Electromagnetic 441 | . 104 23 . . . . . . . 126 . . . . . . . . . 67 . 121 . Impact . | . . . . . . . . . . . . . . . . . . . . . . . . Slashing 628 | . . . . . . . . . . . . . . 485 . . 143 . . . . . . Piercing . | . . . . . . . . . . . . . . . . . . . . . . . . Highest Corruption 11 | . . . . . . . . . 3 9 11 . 2 7 7 7 . 1 2 4 4 4 2 Average Corruption 3 | . . . . . . . . . 3 5 9 . 2 4 7 7 . 1 1 2 4 3 2 Corruption Purged 2 | . . . . . . . . . . . . . . . . . . . . . . 2 . Corruption Blocked . | . . . . . . . . . . . . . . . . . . . . . . . . Effects 236 | . . . . . . . . . 7 76 30 . 17 19 2 2 . 2 14 14 41 11 1 Message Errors 63 | . . . . . . . . . 2 21 7 . 4 5 1 . . 1 4 3 11 3 1 Matter Fused 55 | . . . . . . . . . 1 16 6 . 3 5 1 . . . 3 4 10 6 . Heat Flow Errors 22 | . . . . . . . . . . 5 3 . 3 1 . 1 . . 3 1 5 . . Energy Discharges 25 | . . . . . . . . . 1 7 4 . 2 3 . 1 . . 1 1 5 . . Parts Rejected 10 | . . . . . . . . . 1 3 . . . . . . . . 1 3 2 . . Parts Fused 1 | . . . . . . . . . . . 1 . . . . . . . . . . . . Data Loss (minor) 24 | . . . . . . . . . 1 10 3 . 2 3 . . . 1 2 . 1 1 . Data Loss (major) 8 | . . . . . . . . . 1 2 1 . 1 1 . . . . . 1 1 . . Misfires 8 | . . . . . . . . . . 4 1 . 1 1 . . . . . . 1 . . Alerts 8 | . . . . . . . . . . 5 1 . 1 . . . . . . . 1 . . Weapon Failures 12 | . . . . . . . . . . 3 3 . . . . . . . . 1 4 1 . Overload Shots 3 | . . . . . . . . . . . . . . . . . . 1 2 . . . . Overflow Damage 960 | . . . . . . . . 19 . 21 . 106 3 67 . . 31 28 205 124 70 286 . Projectiles 70 | . . . . . . . . . . . . . . . . . . 6 64 . . . . Explosions 890 | . . . . . . . . 19 . 21 . 106 3 67 . . 31 22 141 124 70 286 . Melee . | . . . . . . . . . . . . . . . . . . . . . . . . Knockbacks 12 | . . . . . . . . . . . . . 4 . . . . . 8 . . . . Impact . | . . . . . . . . . . . . . . . . . . . . . . . . Kinetic 10 | . . . . . . . . . . . . . 4 . . . . . 6 . . . . Secondary 2 | . . . . . . . . . . . . . . . . . . . 2 . . . . Self-Inflicted Damage 637 | . 41 . . . . 56 59 23 . 149 . 25 29 . . . . 42 . 95 . 75 43 Shots 15 | . 2 . . . . 2 1 1 . 3 . 1 1 . . . . 1 . 1 . 1 1 Rammed 1 | . . . . . . . . . . . . . . . . . . . . . . 1 . Targets Rammed 2 | . . . . . . . . . . . 1 . . . . . . . . . . 1 . Kicked 1 | . . . . . . . . . . . 1 . . . . . . . . . . . . Crushed . | . . . . . . . . . . . . . . . . . . . . . . . . Highest Temperature 531 | . 9 14 20 2 . 165 105 332 419 400 323 262 531 243 . 83 . 189 314 145 252 290 4 Average Temperature 77 | . 4 5 5 2 . 39 34 88 109 98 80 60 85 45 . 50 . 95 95 34 47 144 4 Received Heat Transfer 4518 | . 66 . 519 9 . 180 45 225 225 726 261 684 261 189 . . 9 89 219 85 337 170 219 Effects 21 | . . . . . . . . . . 11 2 1 6 . . . . . 1 . . . . Shutdowns 3 | . . . . . . . . . . 1 . . 2 . . . . . . . . . . Energy Bleed 5 | . . . . . . . . . . . 2 1 1 . . . . . 1 . . . . Interference 7 | . . . . . . . . . . 7 . . . . . . . . . . . . . Matter Decay 1 | . . . . . . . . . . . . . 1 . . . . . . . . . . Short Circuit 1 | . . . . . . . . . . 1 . . . . . . . . . . . . . Damage (minor) 4 | . . . . . . . . . . 2 . . 2 . . . . . . . . . . Siege Activations 2 | . . . . . . . . . . . . . . . . . . . 2 . . . . Total Turns 30 | . . . . . . . . . . . . . . . . . . . 30 . . . . Longest Duration 23 | . . . . . . . . . . . . . . . . . . . 23 . . . . Robots Corrupted . | . . . . . . . . . . . . . . . . . . . . . . . . Combat Hostiles . | . . . . . . . . . . . . . . . . . . . . . . . . Parts Fried 2 | . . . . . . . . . . . . . 2 . . . . . . . . . . Impact Corruptions . | . . . . . . . . . . . . . . . . . . . . . . . . Robots Melted 2 | . . . . . . . . . . 1 . . . . . . . . 1 . . . . Combat Hostiles 1 | . . . . . . . . . . 1 . . . . . . . . . . . . . Parts Melted 14 | . . . . . . . 1 . . 2 . . . . . . . . 10 . 1 . . Heat Transferred 5316 | . . . . . . . 37 . . 851 . . . . . . . 500 2828 250 . 850 . Parts Sabotaged 4 | . . . . . . . . . . . . . . . . . . . 4 . . . . Parts Stolen . | . . . . . . . . . . . . . . . . . . . . . . . . Parts Stripped . | . . . . . . . . . . . . . . . . . . . . . . . . Power Chain Reactions 3 | . 1 . . . . . . . . . . . . . . . . . . 1 . 1 . Alert | -11 -10 -10 -9 -9 -9 -8 -8 -8 -8 -8 -8 -7 -7 -7 -7 -7 -6 -6 -6 -6 -6 -6 -6 ------- Run | Yrd Mat Min Mat Min Exi Min Mat Gar Mat Gar Mat Fac Gar Fac Low Zio Pro Fac Gar Fac Gar Fac Gar Peak Influence 3896 | 30 287 375 645 539 . 336 361 1333 1012 2734 1828 2506 3896 2281 . . . 599 2101 2097 3007 2018 1677 Initial 2045 | . 19 111 56 251 . . 52 143 627 573 1332 1100 1750 2045 . . . 94 312 1087 1453 1562 1412 Average 1255 | 9 132 240 419 352 . 128 174 888 828 1483 1554 1520 2726 2068 . . . 294 1285 1512 2242 1673 1500 Maximum Alert Level 5 | . 1 1 2 2 . 1 1 4 3 5 5 5 5 5 . . . 2 5 5 5 5 5 Low Security (%) 9 | 100 75 34 12 . . 75 75 1 . . . . . . . . . 25 . . . . . Level 1 13 | . 24 65 20 84 . 24 25 12 . . . . . . . . . 54 4 . . . . Level 2 8 | . . . 67 15 . . . 12 18 2 . . . . . . . 20 3 . . . . Level 3 12 | . . . . . . . . 39 81 39 . 10 . . . . . . 15 5 . . . Level 4 22 | . . . . . . . . 34 . 20 56 43 . . . . . . 54 67 11 53 86 Level 5 32 | . . . . . . . . . . 37 36 41 100 86 . . . . 22 20 88 41 13 High Security 1 | . . . . . . . . . . . 6 4 . 13 . . . . . 6 . 5 . Max Security . | . . . . . . . . . . . . . . . . . . . . . . . . Squads Dispatched 74 | . 2 . 5 . . . 2 . 2 . 5 21 . 8 . . . 6 . 13 . 10 . Investigation 22 | . 1 . 3 . . . 1 . 1 . 1 7 . 1 . . . 3 . 3 . 1 . Extermination 3 | . . . . . . . . . . . . 1 . 1 . . . . . 1 . . . Reinforcement 29 | . 1 . 2 . . . . . 1 . 3 7 . 5 . . . 2 . 5 . 3 . Assault 13 | . . . . . . . . . . . 1 2 . 1 . . . . . 4 . 5 . Garrison 7 | . . . . . . . 1 . . . . 4 . . . . . 1 . . . 1 . Intercept . | . . . . . . . . . . . . . . . . . . . . . . . . Searches Triggered 1 | . . . 1 . . . . . . . . . . . . . . . . . . . . Construction Impeded 5 | . . . . . . . . . . . . 3 . 1 . . . 1 . . . . . Haulers Reinforced 7 | . . . . . . . . . . . . 2 . 1 . . . 1 . 3 . . . Active Scanning Responses . | . . . . . . . . . . . . . . . . . . . . . . . . Cargo Convoy Interrupts . | . . . . . . . . . . . . . . . . . . . . . . . . Stealth | -11 -10 -10 -9 -9 -9 -8 -8 -8 -8 -8 -8 -7 -7 -7 -7 -7 -6 -6 -6 -6 -6 -6 -6 --------- Run | Yrd Mat Min Mat Min Exi Min Mat Gar Mat Gar Mat Fac Gar Fac Low Zio Pro Fac Gar Fac Gar Fac Gar Distress Signals 22 | . . . 5 . . . 4 . 2 1 2 2 . 1 . . . 2 . 2 . 1 . Communications Jammed . | . . . . . . . . . . . . . . . . . . . . . . . . Distress Signals . | . . . . . . . . . . . . . . . . . . . . . . . . Times Spotted 605 | . 15 17 65 12 . 11 12 30 23 44 31 74 46 26 . . 7 13 38 43 37 35 26 Peak Tracking Total 16 | . 8 3 9 4 . 3 4 8 9 8 4 11 9 6 . . 4 3 8 9 5 10 16 Tactical Retreats 48 | . 2 1 8 1 . . 1 . 2 2 3 10 1 1 . . 2 1 3 1 2 3 4 Traps | -11 -10 -10 -9 -9 -9 -8 -8 -8 -8 -8 -8 -7 -7 -7 -7 -7 -6 -6 -6 -6 -6 -6 -6 ------- Run | Yrd Mat Min Mat Min Exi Min Mat Gar Mat Gar Mat Fac Gar Fac Low Zio Pro Fac Gar Fac Gar Fac Gar Traps Triggered 42 | . . . 3 . . . . 2 . 5 1 . 11 1 . . . 1 5 1 8 2 2 Indirectly . | . . . . . . . . . . . . . . . . . . . . . . . . Trap Hack Attempts . | . . . . . . . . . . . . . . . . . . . . . . . . Triggered . | . . . . . . . . . . . . . . . . . . . . . . . . Disarmed 4 | . . . 4 . . . . . . . . . . . . . . . . . . . . Reprogrammed 12 | . . . . . . . . . . . . 6 . . . . . . . 6 . . . Reused 4 | . . . . . . . . . 1 . . 2 . . . . . . . 1 . . . Traps Extracted . | . . . . . . . . . . . . . . . . . . . . . . . . Installed 1 | . . . . . . . . . 1 . . . . . . . . . . . . . . Triggered 4 | . . . . . . . . . 1 . . 2 . . . . . . . 1 . . . Most Traps Carried 1 | . . . . . . . . 1 1 . . . . . . . . . . . . . . Machines | -11 -10 -10 -9 -9 -9 -8 -8 -8 -8 -8 -8 -7 -7 -7 -7 -7 -6 -6 -6 -6 -6 -6 -6 ---------- Run | Yrd Mat Min Mat Min Exi Min Mat Gar Mat Gar Mat Fac Gar Fac Low Zio Pro Fac Gar Fac Gar Fac Gar Machines Disabled 132 | . 2 . . . . . 1 9 . 12 4 12 10 4 . . . 2 7 51 7 10 1 Max in Single Turn 18 | . 2 . . . . . 1 1 . 2 1 3 2 3 . . . 1 1 18 1 3 1 Garrison Access 1 | . . . . . . . . . . . . . . . . . . . . . . 1 . Garrison Relay 29 | . . . . . . . . 6 . 5 . . 6 . . . . . 6 . 6 . . Phase Generator 2 | . . . . . . . . . . 1 . . 1 . . . . . . . . . . Machines Repaired . | . . . . . . . . . . . . . . . . . . . . . . . . Machines Dismantled . | . . . . . . . . . . . . . . . . . . . . . . . . Machines Sabotaged . | . . . . . . . . . . . . . . . . . . . . . . . . Overloaded Fab Kills . | . . . . . . . . . . . . . . . . . . . . . . . . Hacking | -11 -10 -10 -9 -9 -9 -8 -8 -8 -8 -8 -8 -7 -7 -7 -7 -7 -6 -6 -6 -6 -6 -6 -6 --------- Run | Yrd Mat Min Mat Min Exi Min Mat Gar Mat Gar Mat Fac Gar Fac Low Zio Pro Fac Gar Fac Gar Fac Gar Machines Accessed 112 | . 5 . 11 . 5 . 7 5 7 4 1 17 3 6 . . . 11 2 16 2 9 1 Terminals 67 | . 4 . 8 . . . 4 5 4 4 1 7 3 3 . . . 4 2 9 2 6 1 Fabricators 10 | . . . . . . . . . . . . 3 . 1 . . . 2 . 3 . 1 . Repair Stations 10 | . 1 . 2 . . . 1 . 1 . . 3 . 1 . . . 1 . . . . . Recycling Units . | . . . . . . . . . . . . . . . . . . . . . . . . Scanalyzers 10 | . . . 1 . . . 1 . 1 . . 2 . 1 . . . 2 . 2 . . . Garrison Access 10 | . . . . . . . 1 . 1 . . 2 . . . . . 2 . 2 . 2 . Total Hacks 383 | . 15 . 47 . 50 . 25 16 28 8 2 49 6 24 . . . 37 3 42 5 23 3 Successful 215 | . 6 . 25 . 50 . 17 6 17 3 2 23 2 8 . . . 21 2 23 1 9 . Failed 166 | . 8 . 21 . . . 8 10 11 5 . 26 4 16 . . . 16 1 19 4 14 3 Catastrophic 36 | . 3 . 1 . . . 2 3 1 3 . 5 1 7 . . . 2 1 2 1 4 . Database Lockouts 2 | . 1 . 1 . . . . . . . . . . . . . . . . . . . . Manual 93 | . 8 . 17 . 1 . 7 9 13 1 2 6 1 1 . 5 . 6 1 7 . 8 . Terminals 200 | . 12 . 33 . . . 12 16 18 8 2 20 6 10 . . . 12 3 26 5 14 3 Fabricators 28 | . . . . . . . . . . . . 9 . 1 . . . 6 . 8 . 4 . Repair Stations 35 | . 3 . 6 . . . 3 . 2 . . 7 . 10 . . . 4 . . . . . Recycling Units . | . . . . . . . . . . . . . . . . . . . . . . . . Scanalyzers 54 | . . . 8 . . . 9 . 6 . . 10 . 3 . . . 12 . 6 . . . Garrison Access 16 | . . . . . . . 1 . 2 . . 3 . . . . . 3 . 2 . 5 . Terminal Hacks 129 | . 4 . 15 . 50 . 6 6 8 3 2 5 2 3 . . . 3 2 13 1 6 . Record 50 | . . . . . 49 . . . 1 . . . . . . . . . . . . . . Robot Analysis 9 | . 1 . 5 . . . 3 . . . . . . . . . . . . . . . . Prototype ID Bank 10 | . 1 . 3 . . . . . 1 . . 1 . . . . . . . 3 . 1 . Open Door 2 | . . . . . . . . 1 . . . . . . . . . . 1 . . . . Open DSF 1 | . . . . . . . . . . . . 1 . . . . . . . . . . . Branch Access Points 2 | . . . 1 . . . . . . . . . . . . . . 1 . . . . . Emergency Access Points 5 | . . . . . . . . 1 . 1 . . 1 . . . . . 1 . 1 . . Terminal Index 8 | . . . 1 . . . 1 . 1 . 1 1 . . . . . 1 . 1 . 1 . Garrison Index 1 | . . . . . . . 1 . . . . . . . . . . . . . . . . Unreport Threat 8 | . . . 1 . . . . 1 1 . . . . 2 . . . . . 2 . 1 . Locate Traps 1 | . . . . . . . . . . . . 1 . . . . . . . . . . . Disarm Traps 1 | . . . 1 . . . . . . . . . . . . . . . . . . . . Reprogram Traps 2 | . . . . . . . . . . . . 1 . . . . . . . 1 . . . Investigation Status 1 | . . . . . . . . . . . . . . . . . . . . 1 . . . Recall Investigation 2 | . . . 1 . . . . . . . . . . . . . . . . 1 . . . Recall Reinforcements 1 | . . . 1 . . . . . . . . . . . . . . . . . . . . Zone Layout 18 | . 2 . 1 . . . 1 . 4 . 1 . . 1 . . . 1 . 4 . 3 . Garrison Registry 1 | . . . . . . . . 1 . . . . . . . . . . . . . . . Patrol Navigation 3 | . . . . . . . . 1 . 1 . . 1 . . . . . . . . . . Security Stations 2 | . . . . . . . . 1 . 1 . . . . . . . . . . . . . Derelict Proto ID Bank 1 | . . . . . 1 . . . . . . . . . . . . . . . . . . Fabricator Hacks 16 | . . . . . . . . . . . . 7 . . . . . 3 . 4 . 2 . Network Status 4 | . . . . . . . . . . . . 1 . . . . . 1 . 1 . 1 . Load Schematic 6 | . . . . . . . . . . . . 3 . . . . . 1 . 2 . . . Build 6 | . . . . . . . . . . . . 3 . . . . . 1 . 1 . 1 . Repair Station Hacks 21 | . 2 . 5 . . . 2 . 2 . . 4 . 4 . . . 2 . . . . . Scan Component 11 | . . . 3 . . . 1 . 1 . . 2 . 3 . . . 1 . . . . . Repair 8 | . . . 2 . . . 1 . 1 . . 2 . 1 . . . 1 . . . . . Refit 2 | . 2 . . . . . . . . . . . . . . . . . . . . . . Recycling Unit Hacks . | . . . . . . . . . . . . . . . . . . . . . . . . Scanalyzer 41 | . . . 5 . . . 8 . 6 . . 6 . 1 . . . 11 . 4 . . . Insert Component 21 | . . . 3 . . . 4 . 3 . . 3 . 1 . . . 5 . 2 . . . Analyze 20 | . . . 2 . . . 4 . 3 . . 3 . . . . . 6 . 2 . . . Garrison Access Hacks 8 | . . . . . . . 1 . 1 . . 1 . . . . . 2 . 2 . 1 . Unlock Access 8 | . . . . . . . 1 . 1 . . 1 . . . . . 2 . 2 . 1 . Unauthorized Hacks . | . . . . . . . . . . . . . . . . . . . . . . . . Terminals . | . . . . . . . . . . . . . . . . . . . . . . . . Fabricators . | . . . . . . . . . . . . . . . . . . . . . . . . Repair Stations . | . . . . . . . . . . . . . . . . . . . . . . . . Recycling Units . | . . . . . . . . . . . . . . . . . . . . . . . . Scanalyzers . | . . . . . . . . . . . . . . . . . . . . . . . . Garrison Access . | . . . . . . . . . . . . . . . . . . . . . . . . Data Cores Recovered 3 | . . . 2 . . . . . . . . . . . . . . . . 1 . . . Used 1 | . . . 1 . . . . . . . . . . . . . . . . . . . . Hacking Detections 92 | . 4 . 11 . . . 6 5 6 4 . 14 2 6 . . . 7 2 14 2 8 1 Full Trace Events 27 | . 1 . 3 . . . 1 2 1 2 . 7 1 1 . . . 3 . 2 1 1 1 Feedback Events 1 | . . . . . . . . . . . . . . . . . . 1 . . . . . Corruption 1 | . . . . . . . . . . . . . . . . . . 1 . . . . . Feedback Blocked . | . . . . . . . . . . . . . . . . . . . . . . . . Robot Schematics Acquired 4 | . . . . . . . . . . . . . . . . 4 . . . . . . . Robots Built 5 | . . . . . . . . . . . . . . . . . . 2 . . . 3 . Authchips . | . . . . . . . . . . . . . . . . . . . . . . . . Time 542 | . . . . . . . . . . . . . . . . . . 204 . 204 . 134 . Total Robot Build Rating 28 | . . . . . . . . . . . . . . . . . . 16 . . . 12 . Part Schematics Acquired 31 | . . . 2 . . . 4 . 3 . . 1 . . . 15 . 5 . 1 . . . Parts Built 6 | . . . . . . . . . . . . 6 . . . . . . . . . . . Authchips . | . . . . . . . . . . . . . . . . . . . . . . . . Time 212 | . . . . . . . . . . . . 212 . . . . . . . . . . . Total Part Build Rating 36 | . . . . . . . . . . . . 36 . . . . . . . . . . . Parts Repaired 8 | . . . 2 . . . 1 . 1 . . 2 . 1 . . . 1 . . . . . Time 282 | . . . 58 . . . 32 . 38 . . 100 . 28 . . . 26 . . . . . Parts Recycled . | . . . . . . . . . . . . . . . . . . . . . . . . Recycled Matter . | . . . . . . . . . . . . . . . . . . . . . . . . Retrieved Matter . | . . . . . . . . . . . . . . . . . . . . . . . . Retrieved Components . | . . . . . . . . . . . . . . . . . . . . . . . . Parts Scanalyzed 20 | . . . 2 . . . 4 . 3 . . 3 . 1 . . . 5 . 2 . . . Part Schematics Acquired 16 | . . . 2 . . . 4 . 3 . . 1 . . . . . 5 . 1 . . . Parts Damaged 1 | . . . 1 . . . . . . . . . . . . . . . . . . . . Bothacking | -11 -10 -10 -9 -9 -9 -8 -8 -8 -8 -8 -8 -7 -7 -7 -7 -7 -6 -6 -6 -6 -6 -6 -6 ------------ Run | Yrd Mat Min Mat Min Exi Min Mat Gar Mat Gar Mat Fac Gar Fac Low Zio Pro Fac Gar Fac Gar Fac Gar Used RIF Installer . | . . . . . . . . . . . . . . . . . . . . . . . . Robots Hacked . | . . . . . . . . . . . . . . . . . . . . . . . . Non-combat . | . . . . . . . . . . . . . . . . . . . . . . . . Combat . | . . . . . . . . . . . . . . . . . . . . . . . . Robot Hacks Applied . | . . . . . . . . . . . . . . . . . . . . . . . . Relay Couplers Released 122 | . . . . . . . . 27 . 20 . . 25 . . . . . 25 . 23 2 . Machine Destruction 122 | . . . . . . . . 27 . 20 . . 25 . . . . . 25 . 23 2 . Fabnet Peak Effective % . | . . . . . . . . . . . . . . . . . . . . . . . . Robots Rewired 32 | . . . . . . . . 10 . 7 . . 9 . . . . . . . 6 . . Allies Hacked . | . . . . . . . . . . . . . . . . . . . . . . . . Hacks Repelled . | . . . . . . . . . . . . . . . . . . . . . . . . Allies | -11 -10 -10 -9 -9 -9 -8 -8 -8 -8 -8 -8 -7 -7 -7 -7 -7 -6 -6 -6 -6 -6 -6 -6 -------- Run | Yrd Mat Min Mat Min Exi Min Mat Gar Mat Gar Mat Fac Gar Fac Low Zio Pro Fac Gar Fac Gar Fac Gar Total Allies 53 | . . 2 . 3 . . . 10 . 7 . . 11 . . . . 2 4 3 8 3 . Largest Group 7 | . . 1 . 3 1 1 1 6 6 4 3 . 7 1 . . . 2 2 3 5 3 . Highest-Rated Group 216 | . . 31 . 40 16 16 16 126 126 48 48 . 216 95 . . . 128 175 93 127 60 . Highest-Rated Ally 95 | . . 31 . 16 16 16 16 31 24 16 16 . 95 95 . . . 64 95 31 51 20 . Warlord Squad Rendezvous 9 | . . . . . . . . . . . . . . . . . . 1 . 6 . 2 . Infantry 3 | . . . . . . . . . . . . . . . . . . . . 3 . . . Muscle 2 | . . . . . . . . . . . . . . . . . . 1 . 1 . . . Ranger 2 | . . . . . . . . . . . . . . . . . . . . 2 . . . Pyro 1 | . . . . . . . . . . . . . . . . . . . . . . 1 . Chimera 1 | . . . . . . . . . . . . . . . . . . . . . . 1 . Total Orders 10 | . . . . . . 2 . 2 . . . . . . . . . . 6 . . . . STAY 6 | . . . . . . 1 . 1 . . . . . . . . . . 4 . . . . FOLLOW 4 | . . . . . . 1 . 1 . . . . . . . . . . 2 . . . . Ally Attacks 427 | . . 10 . 30 . 15 5 48 30 3 35 . 93 9 . . . 8 70 21 46 4 . Total Damage 8948 | . . 146 . 366 . 152 66 667 641 . 458 . 1996 265 . . . 257 2690 337 787 120 . Kills 93 | . . 3 . 6 . 3 1 7 8 . 5 . 25 5 . . . 1 18 4 7 . . Allies Corrupted 3 | . . . . . . . . 1 . . . . . 1 . . . . 1 . . . . Allies Melted 1 | . . . . . . . . . . . . . . . . . . . 1 . . . . Intel | -11 -10 -10 -9 -9 -9 -8 -8 -8 -8 -8 -8 -7 -7 -7 -7 -7 -6 -6 -6 -6 -6 -6 -6 ------- Run | Yrd Mat Min Mat Min Exi Min Mat Gar Mat Gar Mat Fac Gar Fac Low Zio Pro Fac Gar Fac Gar Fac Gar Robot Analysis Total 9 | . 1 . 5 . . . 3 . . . . . . . . . . . . . . . . Derelict Logs Recovered 6 | . . 1 . 3 . . . . . . . . . . 1 1 . . . . . . . Drone Launches . | . . . . . . . . . . . . . . . . . . . . . . . . Drone Recoveries . | . . . . . . . . . . . . . . . . . . . . . . . . Exploration | -11 -10 -10 -9 -9 -9 -8 -8 -8 -8 -8 -8 -7 -7 -7 -7 -7 -6 -6 -6 -6 -6 -6 -6 ------------- Run | Yrd Mat Min Mat Min Exi Min Mat Gar Mat Gar Mat Fac Gar Fac Low Zio Pro Fac Gar Fac Gar Fac Gar Turns Passed 19955 | 116 302 1081 1547 784 420 505 568 1016 370 2863 702 1214 1305 734 45 810 204 444 1690 1151 1452 524 108 Spaces Moved 23735 | 56 252 856 1222 534 534 695 625 1082 367 1907 485 1772 1698 1226 129 1312 456 807 2178 2233 2204 876 229 Core 17 | 2 . . . . . . . . 1 11 . . . . . . . . 3 . . . . Treads 340 | . . . . . . . . . . 105 . . . . . . . . 235 . . . . Legs 2966 | . . . 625 534 172 . . . . 1081 485 69 . . . . . . . . . . . Wheels 63 | 54 9 . . . . . . . . . . . . . . . . . . . . . . Hover 929 | . 243 134 . . . . . . . 216 . 336 . . . . . . . . . . . Flight 19420 | . . 722 597 . 362 695 625 1082 366 494 . 1367 1698 1226 129 1312 456 807 1940 2233 2204 876 229 Fastest Speed 12 | 50 76 76 31 120 50 50 50 50 50 31 97 23 25 25 28 28 28 21 20 20 12 20 20 Average Speed 49 | 84 76 110 79 123 74 50 50 50 50 103 100 40 26 26 28 55 28 23 38 26 21 21 28 Slowest Speed 400 | 100 80 160 190 126 126 50 50 50 400 350 103 180 107 112 28 104 104 28 200 102 105 104 35 Overloaded Moves 18 | . . . . . . . . . . . . . . . . . . . . . 12 . 6 Propulsion Burnouts 1 | . . . . . . . . . . . . . . . . . . . . . 1 . . Robots Hopped 123 | . . . 13 . . 15 2 . 4 . . 26 3 11 . . . 8 . 28 1 7 5 Cave-ins Triggered . | . . . . . . . . . . . . . . . . . . . . . . . . Exploration Rate (%) 61 | 4 44 98 86 98 90 97 47 84 34 98 38 32 97 30 28 87 67 15 95 48 97 22 41 Regions Visited 23 Branch Regions 7 Pre-discovered Areas 6 | . . . . 2 1 . . . . . . . . . 2 1 . . . . . . . Known Exits Taken 8 | . . . 1 . . . 1 . 1 . . 1 . 1 . . . 1 . 1 . 1 . Unknown Exits Taken 10 | 1 1 1 . 1 1 1 . . . . 1 . . . 1 1 1 . . . . . . Scrap Searched 9 | . . 1 . 1 . 2 . . . . . . . . . 3 2 . . . . . . Spaces Dug 50 | . . . . . . . . . . . . . . 2 . . . 23 . . 25 . . Terrain Destroyed 1368 | . 1 . . . . 77 11 55 . 186 1 90 100 34 . . 90 72 186 173 157 114 21 Melee 2 | . . . . . . . . . . . . . . 2 . . . . . . . . . Projectile 70 | . . . . . . . . . . 1 1 15 2 . . . 2 14 11 3 21 . . AOE 1296 | . 1 . . . . 77 11 55 . 185 . 75 98 32 . . 88 58 175 170 136 114 21 Terrain Rammed . | . . . . . . . . . . . . . . . . . . . . . . . . Walls Destroyed . | . . . . . . . . . . . . . . . . . . . . . . . . Machines Disabled . | . . . . . . . . . . . . . . . . . . . . . . . . Actions | -11 -10 -10 -9 -9 -9 -8 -8 -8 -8 -8 -8 -7 -7 -7 -7 -7 -6 -6 -6 -6 -6 -6 -6 --------- Run | Yrd Mat Min Mat Min Exi Min Mat Gar Mat Gar Mat Fac Gar Fac Low Zio Pro Fac Gar Fac Gar Fac Gar Total 29532 | 86 310 938 1504 583 561 779 825 1455 519 2495 590 2053 2402 1513 137 1386 523 1019 2815 2624 3005 1151 259 Wait 2610 | . . 6 45 3 15 58 131 216 112 117 38 75 224 182 8 49 54 123 260 253 444 185 12 Move 23470 | 55 251 855 1196 533 533 664 620 1081 359 1906 484 1721 1691 1203 128 1311 455 791 2177 2177 2201 861 217 Hop 118 | . . . 12 . . 15 2 . 4 . . 24 3 11 . . . 7 . 27 1 7 5 Pick Up 145 | 1 4 8 17 3 4 1 9 5 4 19 4 13 10 4 1 3 1 6 15 6 6 1 . Fast Attach 240 | 7 1 3 24 1 1 1 4 1 5 34 2 34 17 17 . 4 3 11 38 17 13 2 . Attach 111 | . 3 5 6 . . . 4 1 3 15 . 17 7 5 . 1 3 8 9 9 10 4 1 Detach 113 | . 8 1 4 . . . 4 . 5 4 1 14 10 6 . 2 3 9 14 11 12 5 . Swap 198 | 2 1 8 17 1 . 5 9 8 . 26 5 16 28 6 . 1 . 10 9 22 16 8 . Drop 325 | . 6 11 31 3 8 4 13 8 5 38 5 35 38 15 . 8 . 13 43 19 19 2 1 Fire 1379 | 21 36 41 152 39 . 31 29 89 21 191 50 104 100 53 . . 4 25 161 83 116 27 6 Melee 18 | . . . . . . . . . . . . . . 11 . 7 . . . . . . . Ram 1 | . . . . . . . . . . . . . . . . . . . . . . 1 . Kick 1 | . . . . . . . . . . . 1 . . . . . . . . . . . . Crush . | . . . . . . . . . . . . . . . . . . . . . . . . Escape Stasis 491 | . . . . . . . . 6 . 60 . . 145 . . . . 16 89 . 111 47 17 Rewire 311 | . . . . . . . . 40 . 85 . . 129 . . . . . . . 56 1 . Trap 1 | . . . . . . . . . 1 . . . . . . . . . . . . . . Miscellaneous . | . . . . . . . . . . . . . . . . . . . . . . . . Route ------- -11/Scrapyard -10/Materials (discovered 3 exits: *Mat x2 / [*Min]) -10/Mines (discovered 2 exits: *Mat x2) -9/Materials (discovered 6 exits: *Mat x3 / *Min / *Sto x2) -9/Mines (discovered 2 exits: *Mat / *Exi) -9/Exiles (discovered 2 exits: [*Min x2]) -8/Mines (discovered 2 exits: *Mat x2) -8/Materials (discovered 2 exits: *Fac / Gar) -8/Garrison (discovered 4 exits: *Mat x4) -8/Materials (discovered 2 exits: *Fac / Gar) -8/Garrison (discovered 4 exits: *Mat x4) -8/Materials -7/Factory (discovered 3 exits: *Fac / *Low / Gar) -7/Garrison (discovered 3 exits: *Fac x3) -7/Factory (discovered 2 exits: *Fac / *Low) -7/Lower Caves -7/Zion (discovered 2 exits: [*Dee] / [*Pro]) -6/Proximity Caves -6/Factory (discovered 4 exits: Low x2 / Gar / Gar) -6/Garrison (discovered 3 exits: *Fac x3) -6/Factory (discovered 4 exits: *Low x2 / Gar / Gar) -6/Garrison (discovered 3 exits: *Fac x3) -6/Factory (discovered 2 exits: [*Fac] / Gar) -6/Garrison (discovered 2 exits: [*Fac x2]) History --------- Turn | Location | Event 11 | -11/Scrapyard | Discovered new exit (range 16) 117 | -11/Scrapyard | Entered Materials 269 | -10/Materials | Discovered new exit (range 16) 309 | -10/Materials | Central database locked down 314 | -10/Materials | Build established: Mutant 380 | -10/Materials | Discovered new exit (range 10) 408 | -10/Materials | Discovered new exit (range 12) 419 | -10/Materials | Entered Mines 516 | -10/Mines | Core integrity fell below 50% 551 | -10/Mines | Lost 3 parts (1n2w) 644 | -10/Mines | Escorted by a lone wolf Derelict 806 | -10/Mines | Learned Materials emergency access door positions 858 | -10/Mines | Discovered new exit (range 6) 909 | -10/Mines | Build established: Scavenger-Mutant 1059 | -10/Mines | Discovered new exit (range 7) 1197 | -10/Mines | Received a Mining Laser from a helpful Derelict 1500 | -10/Mines | Entered Materials 1500 | -9/Materials | Evolved 2 slots: Propulsion x2 1564 | -9/Materials | Repaired Lgt. Assault Rifle? 1632 | -9/Materials | Identified exit to Mines 1632 | -9/Materials | Identified exit to Storage 1652 | -9/Materials | Discovered new exit (range 11) 1699 | -9/Materials | Discovered new exit (range 3) 1825 | -9/Materials | Build established: Scavenger-Sprinter 1855 | -9/Materials | Central database locked down 1900 | -9/Materials | Search patrols dispatched 1989 | -9/Materials | Lost 7 parts (1p4n1u1w) 2177 | -9/Materials | Discovered new exit (range 12) 2284 | -9/Materials | Build established: Scavenger-Mutant 2772 | -9/Materials | Repaired Imp. Aluminum Leg 2812 | -9/Materials | Build established: Mutant 3047 | -9/Materials | Entered Mines 3103 | -9/Mines | Assisted by bots powering up and referring to "LRC-V3" 3119 | -9/Mines | Discovered new exit (range 9) 3128 | -9/Mines | Learned Materials security intel 3332 | -9/Mines | A Derelict revealed a hidden shortcut to a safe place 3386 | -9/Mines | Lost 3 allies 3417 | -9/Mines | Learned location of Zion (-7) 3572 | -9/Mines | Received a Rocket Launcher from a helpful Derelict 3671 | -9/Mines | Build established: Scavenger-Mutant 3825 | -9/Mines | Deemed a non-threat by the Exiles lab entrance 3825 | -9/Mines | Discovered new exit (range 5) 3831 | -9/Mines | Entered Exiles 3831 | -9/Exiles | Accompanied by 1 ally 3850 | -9/Exiles | Discovered new exit (range 15) 3866 | -9/Exiles | Met 8R-AWN 3883 | -9/Exiles | Met EX-HEX 3917 | -9/Exiles | Met EX-BIN 4007 | -9/Exiles | Aligned with FarCom system 4008 | -9/Exiles | Given EX-Vault access code 4037 | -9/Exiles | Opened EX-Vault 4050 | -9/Exiles | Found Flying Fortress v7 4062 | -9/Exiles | Warned to stay clear of 0b10 Research branches 4076 | -9/Exiles | Met EX-DEC 4118 | -9/Exiles | Visited The Gauntlet 4230 | -9/Exiles | Discovered new exit (range 14) 4251 | -9/Exiles | Left Exiles lab with Flying Fortress v7 4251 | -9/Exiles | Entered Mines 4251 | -8/Mines | Accompanied by 1 ally 4273 | -8/Mines | Discovered new exit (range 6) 4296 | -8/Mines | Discovered new exit (range 5) 4353 | -8/Mines | Build established: Mutant 4526 | -8/Mines | Core integrity fell below 50% 4756 | -8/Mines | Entered Materials 4756 | -8/Materials | Accompanied by 1 ally 4756 | -8/Materials | Evolved 2 slots: Utility x1, Weapon x1 4937 | -8/Materials | Met 7R-MNS 5021 | -8/Materials | Discovered new exit (range 4) 5030 | -8/Materials | Repaired Shotgun? 5164 | -8/Materials | Identified exit to Garrison 5170 | -8/Materials | Garrison activated, responded to threat 5324 | -8/Materials | Entered Garrison 5382 | -8/Garrison | Build established: Hacker-Skirmisher 5402 | -8/Garrison | Triggered checkpoint 5415 | -8/Garrison | Garrison Relay disabled 5526 | -8/Garrison | Triggered checkpoint 5622 | -8/Garrison | Discovered new exit (range 10) 5677 | -8/Garrison | Garrison Relay disabled 5682 | -8/Garrison | Discovered new exit (range 61) 5682 | -8/Garrison | Discovered new exit (range 23) 5682 | -8/Garrison | Discovered new exit (range 30) 5682 | -8/Garrison | Discovered new exit (range 74) 5723 | -8/Garrison | Garrison Relay disabled 5877 | -8/Garrison | Garrison Relay disabled 5988 | -8/Garrison | Garrison Relay disabled 6000 | -8/Garrison | Triggered checkpoint 6140 | -8/Garrison | Garrison Relay disabled 6152 | -8/Garrison | Learned Materials security intel 6275 | -8/Garrison | Triggered checkpoint 6340 | -8/Garrison | Entered Materials 6340 | -8/Materials | Accompanied by 6 allies 6456 | -8/Materials | Lost 4 allies 6494 | -8/Materials | Repaired Hpw. Shotgun 6639 | -8/Materials | Discovered new exit (range 16) 6710 | -8/Materials | Identified exit to Garrison 6710 | -8/Materials | Entered Garrison 6716 | -8/Garrison | Triggered checkpoint 6768 | -8/Garrison | Garrison Relay disabled 6785 | -8/Garrison | Build established: Skirmisher 6787 | -8/Garrison | Garrison Relay disabled 6926 | -8/Garrison | Triggered checkpoint 7006 | -8/Garrison | Destroyed 7 combat bots 7064 | -8/Garrison | Triggered checkpoint 7132 | -8/Garrison | Lost 3 parts (2n1w) 7226 | -8/Garrison | Discovered new exit (range 10) 7248 | -8/Garrison | Triggered checkpoint 7276 | -8/Garrison | Garrison Relay disabled 7457 | -8/Garrison | Build established: Scavenger-Skirmisher 7940 | -8/Garrison | Phase Generator disabled 8123 | -8/Garrison | Learned Materials security intel 8235 | -8/Garrison | Core integrity fell below 50% 8263 | -8/Garrison | Lost 8 parts (1p3n1u3w) 8556 | -8/Garrison | Triggered checkpoint 8667 | -8/Garrison | Garrison Relay disabled 8724 | -8/Garrison | Discovered new exit (range 16) 8805 | -8/Garrison | Lost 5 parts (1p3n1w) 9123 | -8/Garrison | Lost 4 allies 9237 | -8/Garrison | Triggered checkpoint 9249 | -8/Garrison | Garrison Relay disabled 9284 | -8/Garrison | Discovered new exit (range 14) 9334 | -8/Garrison | Triggered checkpoint 9366 | -8/Garrison | Discovered new exit (range 3) 9573 | -8/Garrison | Entered Materials 9573 | -8/Materials | Accompanied by 3 allies 9784 | -8/Materials | Discovered new exit (range 8) 9973 | -8/Materials | First assault squad dispatched 9998 | -8/Materials | System corruption reached 10% 10228 | -8/Materials | High security lockdown imminent 10258 | -8/Materials | Core integrity fell below 20% 10275 | -8/Materials | Entered Factory 10275 | -7/Factory | Evolved 2 slots: Propulsion x1, Utility x1 10324 | -7/Factory | Identified exit to DSF 10440 | -7/Factory | Fabricated Field Propulsion Drive? 10578 | -7/Factory | Build established: Scavenger-Mutant 10675 | -7/Factory | First assault squad dispatched 10719 | -7/Factory | Repaired Broken KE Penetrator? 10753 | -7/Factory | Discovered new exit (range 11) 10812 | -7/Factory | Discovered new exit (range 8) 10821 | -7/Factory | Fabricated Field Propulsion Drive? 10840 | -7/Factory | Repaired Gauss Rifle 10976 | -7/Factory | Destroyed 8 combat bots 11064 | -7/Factory | Garrison activated, responded to threat 11350 | -7/Factory | Destroyed 10 combat bots 11427 | -7/Factory | Garrison activated, responded to threat 11436 | -7/Factory | High security lockdown imminent 11444 | -7/Factory | Identified exit to Garrison 11472 | -7/Factory | Fabricated Field Propulsion Drive (x2) 11489 | -7/Factory | Entered Garrison 11504 | -7/Garrison | Lost 6 parts (1p2n1u2w) 11505 | -7/Garrison | Garrison Relay disabled 11661 | -7/Garrison | Build established: Scavenger-Sprinter 11724 | -7/Garrison | Triggered checkpoint 11842 | -7/Garrison | Core integrity fell below 50% 12020 | -7/Garrison | Triggered checkpoint 12020 | -7/Garrison | Discovered new exit (range 8) 12067 | -7/Garrison | Garrison Relay disabled 12104 | -7/Garrison | Garrison Relay disabled 12120 | -7/Garrison | Triggered checkpoint 12132 | -7/Garrison | Triggered checkpoint 12210 | -7/Garrison | Triggered checkpoint 12239 | -7/Garrison | Triggered checkpoint 12258 | -7/Garrison | Found embedded Infiltrators 12268 | -7/Garrison | Triggered checkpoint 12289 | -7/Garrison | Garrison Relay disabled 12345 | -7/Garrison | Discovered new exit (range 13) 12414 | -7/Garrison | Triggered checkpoint 12449 | -7/Garrison | Discovered new exit (range 15) 12489 | -7/Garrison | Garrison Relay disabled 12528 | -7/Garrison | Phase Generator disabled 12776 | -7/Garrison | Triggered checkpoint 12794 | -7/Garrison | Entered Factory 12794 | -7/Factory | Accompanied by 1 ally 12908 | -7/Factory | Repaired Field Propulsion Drive 13047 | -7/Factory | Discovered new exit (range 16) 13179 | -7/Factory | Lost 4 parts (1n3w) 13190 | -7/Factory | Discovered new exit (range 15) 13194 | -7/Factory | Identified exit to Lower Caves 13194 | -7/Factory | First assault squad dispatched 13303 | -7/Factory | Core integrity fell below 20% 13341 | -7/Factory | Lost 3 parts (2u1w) 13431 | -7/Factory | High security lockdown imminent 13511 | -7/Factory | High security lockdown engaged 13528 | -7/Factory | Entered Lower Caves 13534 | -7/Lower Caves | Met a Warlord Commander 13535 | -7/Lower Caves | Learned location of Warlord (-5) 13536 | -7/Lower Caves | Warlord Commander delivered Encrypted Comm Array 13540 | -7/Lower Caves | Found Encrypted Comm Array 13570 | -7/Lower Caves | A Derelict revealed a hidden shortcut to a safe place 13573 | -7/Lower Caves | Entered Zion 13606 | -7/Zion | System corruption cleaned by Quarantine Array 13637 | -7/Zion | Received a visual enhancement algorithm 13663 | -7/Zion | Learned Factory emergency access door positions 13694 | -7/Zion | Found Prototype Special Weapon 13694 | -7/Zion | Identified RU-N14's Throwing Claymores 13697 | -7/Zion | Found RU-N14's Throwing Claymores 13699 | -7/Zion | Found RU-N14's Throwing Claymores 13755 | -7/Zion | Given A8's code to call for help 13761 | -7/Zion | Build established: Hacker-Sprinter 13777 | -7/Zion | Rebuked by Imprinter 13889 | -7/Zion | Found RU-N14's Throwing Claymores 14032 | -7/Zion | Discovered new exit (range 14) 14033 | -7/Zion | Acquired unknown access codes intercepted by a Zionite 14176 | -7/Zion | Build established: Hacker-Mutant 14198 | -7/Zion | Opened final containment barrier to the Deep Caves 14218 | -7/Zion | Discovered new exit (range 3) 14218 | -7/Zion | Saw the warning signs outside the Deep Caves entrance 14383 | -7/Zion | Entered Proximity Caves 14433 | -6/Proximity Caves | Spotted B-75 Beast 14524 | -6/Proximity Caves | Discovered new exit (range 11) 14587 | -6/Proximity Caves | Entered Factory 14587 | -6/Factory | Evolved 2 slots: Propulsion x1, Utility x1 14631 | -6/Factory | Repaired Broken Cesium-ion Thruster 14746 | -6/Factory | Identified exit to Garrison 14747 | -6/Factory | Identified exit to Lower Caves 14797 | -6/Factory | Joined by Warlord Muscle squad 14806 | -6/Factory | Identified exit to Garrison 14898 | -6/Factory | Garrison activated, responded to threat 14955 | -6/Factory | Fabricated Y-72 Warden (x2) 15031 | -6/Factory | Entered Garrison 15031 | -6/Garrison | Accompanied by 2 allies 15064 | -6/Garrison | Triggered checkpoint 15100 | -6/Garrison | Garrison Relay disabled 15163 | -6/Garrison | Destroyed 7 combat bots 15200 | -6/Garrison | Triggered checkpoint 15235 | -6/Garrison | Build established: Scavenger-Sprinter 15391 | -6/Garrison | Triggered checkpoint 15416 | -6/Garrison | Garrison Relay disabled 15512 | -6/Garrison | Spotted B-75 Beast 15512 | -6/Garrison | Spotted B-75 Beast 15604 | -6/Garrison | Triggered checkpoint 15684 | -6/Garrison | Discovered new exit (range 13) 15832 | -6/Garrison | Triggered checkpoint 15879 | -6/Garrison | Found embedded Infiltrators 15902 | -6/Garrison | Garrison Relay disabled 15914 | -6/Garrison | Triggered checkpoint 15992 | -6/Garrison | Build established: Scavenger-Skirmisher 16123 | -6/Garrison | Allies destroyed B-75 Beast 16150 | -6/Garrison | Destroyed B-75 Beast 16204 | -6/Garrison | Triggered checkpoint 16319 | -6/Garrison | Discovered new exit (range 7) 16328 | -6/Garrison | Garrison Relay disabled 16348 | -6/Garrison | Triggered checkpoint 16368 | -6/Garrison | Rescued a captive Derelict 16369 | -6/Garrison | Rescued a captive Derelict 16472 | -6/Garrison | Build established: Scavenger-Sprinter 16477 | -6/Garrison | Garrison Relay disabled 16485 | -6/Garrison | Discovered new exit (range 13) 16502 | -6/Garrison | Triggered checkpoint 16684 | -6/Garrison | Found Relay Coupler [Proto] 16685 | -6/Garrison | Found Relay Coupler [Proto] 16721 | -6/Garrison | Entered Factory 16734 | -6/Factory | Discovered exit to Lower Caves (range 13) 16818 | -6/Factory | Joined by Warlord Infantry squad 16974 | -6/Factory | Identified exit to Garrison 17014 | -6/Factory | Joined by Warlord Ranger squad 17121 | -6/Factory | Discovered exit to Lower Caves (range 12) 17228 | -6/Factory | Joined by Warlord Infantry squad 17320 | -6/Factory | Joined by Warlord Infantry squad 17341 | -6/Factory | Build established: Sprinter 17402 | -6/Factory | Joined by Warlord Muscle squad 17421 | -6/Factory | First assault squad dispatched 17456 | -6/Factory | Lost 3 allies 17639 | -6/Factory | Identified exit to Garrison 17656 | -6/Factory | Allied Derelicts emerged from ambush trap array 17716 | -6/Factory | Joined by Warlord Ranger squad 17801 | -6/Factory | High security lockdown imminent 17863 | -6/Factory | Lost 8 allies 17872 | -6/Factory | Entered Garrison 17881 | -6/Garrison | Triggered checkpoint 17915 | -6/Garrison | Garrison Relay disabled 18032 | -6/Garrison | Triggered checkpoint 18034 | -6/Garrison | Triggered checkpoint 18386 | -6/Garrison | Discovered new exit (range 13) 18387 | -6/Garrison | Garrison Relay disabled 18436 | -6/Garrison | Garrison Relay disabled 18532 | -6/Garrison | Triggered checkpoint 18725 | -6/Garrison | Discovered new exit (range 9) 18766 | -6/Garrison | Triggered checkpoint 18814 | -6/Garrison | Found Hvy. Reflective Plating 18858 | -6/Garrison | Discovered new exit (range 9) 18871 | -6/Garrison | Garrison Relay disabled 18876 | -6/Garrison | Triggered checkpoint 18968 | -6/Garrison | Triggered checkpoint 18971 | -6/Garrison | Lost 3 allies 19037 | -6/Garrison | Garrison Relay disabled 19046 | -6/Garrison | Triggered checkpoint 19126 | -6/Garrison | Found Hvy. Reflective Plating 19188 | -6/Garrison | Rescued a captive Derelict 19189 | -6/Garrison | Rescued a captive Derelict 19269 | -6/Garrison | Spotted Executioner 19269 | -6/Garrison | Spotted Executioner 19316 | -6/Garrison | Found Hvy. Reflective Plating 19324 | -6/Garrison | Entered Factory 19417 | -6/Factory | Discovered new exit (range 11) 19423 | -6/Factory | Joined by Warlord Pyro squad 19490 | -6/Factory | Fabricated B-48 Gladiator? 19674 | -6/Factory | First assault squad dispatched 19766 | -6/Factory | Identified exit to Garrison 19776 | -6/Factory | Joined by Warlord Chimera squad 19815 | -6/Factory | Garrison activated, responded to threat 19821 | -6/Factory | High security lockdown imminent 19848 | -6/Factory | Entered Garrison 19863 | -6/Garrison | Destroyed 11 combat bots 19884 | -6/Garrison | Triggered checkpoint 19892 | -6/Garrison | Discovered new exit (range 14) 19895 | -6/Garrison | Attempted to access garrison exit controls, blocked by remote lockdown 19905 | -6/Garrison | Core integrity fell below 50% 19919 | -6/Garrison | Triggered checkpoint 19923 | -6/Garrison | Triggered checkpoint 19935 | -6/Garrison | Discovered new exit (range 15) 19940 | -6/Garrison | Attempted to access garrison exit controls, blocked by remote lockdown 19949 | -6/Garrison | Core integrity fell below 20% 19956 | -6/Garrison | Destroyed by G-50 Soldier with Heavy Laser Last Messages --------------- 19923_ Beams of light sweep through the air. An alarm sounds. 19929_ S-27 Virus destroyed. 19929_ Micro-nuke Launcher destroyed. 19929_ S-27 Virus destroyed. 19935_ EXIT=FOUND 19940_ Attempting to access garrison exit controls... 19940_ Remote lockdown engaged. 19947_ The unstable cave ceiling collapses. 19948_ Triggered Stasis Trap. 19948_ A bubble of rippling energy engulfs the area. 19948_ Field strength at 94. 19948_ Field strength at 88. 19949_ Field strength at 82. 19950_ Field strength at 62. 19951_ TVK A1PCM70N1 UQ6G69R|DEU9LW2UK 19951_ Field strength at 51. 19952_ Field strength at 32. 19953_ Field strength at 18. 19954_ Stasis field depleted. 19956_ Acquired 8 matter. Map ----- +----------------------------------------------------+ | ?????????????????????????????????????????????????? | | ?????????????????????????????????????????????????? | | ?????????????????????????????????????????????????? | | ?????????????????????????????????????????????????? | | ?????????????????????????????????????????????????? | | ?????????????????????????????????????????????????? | | ?????????????????????????????????????????????????? | | ?????????????????????????????????????????????????? | | ?????????????????????????????????????????????????? | | ?????????????????????????????????????????????????? | | ???????? ????????????????????????????????????????? | | ??????? ????????????????????????????????????????? | | ???????# ????????????????????????????????????????? | | ???????# ????????????????????????????????????????? | | ???????# ????????????????????????????????????????? | | ???????# ?????h??????????????????????????????????? | | ???????# ###?????????????????????????????????????? | | ???????# ?????????????????????????????????????? | | ???????# ??????????????????????????????????????? | | ???????# #??????????####????????????????????????? | | ???????# #????????### #####????????????????????? | | ???????# #???????## # # ##???????????????????? | | ######## ######### # ##??????????????????? | | #??????????????????? | | s ^ #??????????????????? | | s [@g #??????????????????? | | ##################### l #??????????????????? | | ????????????????????### % #??????????????????? | | ??????????????????????#Y# # g#??????????????????? | | ??????????????????????# ### #?????????#????????? | | ??????????????????????#g#?# #?????#?? #????????? | | ??????????????????????gY#?# #??? #? #????????? | | ??????????????????????# #?# ## ## ^##???????? | | ??????????????????????#g#?# #???????? | | ??????????????????????# ?# #???????? | | ???????????????????????##?#g #???????? | | ??????????????????????????# g ## ## #???????? | | ??????????????????????????# ## ## ###?????? | | ??????????????????????????" #?????? | | ??????????????????????????" #?????? | | ??????????????????????????" #?????? | | ?????????????????????????C" #?????? | | ??????????????????????????# ## ## ###?????? | | ????????????############### ## ## #???????? | | ????????????# #???????? | | ????????????# #???????? | | ????????????# #???????? | | ????????????# #### ########### ## #???????? | | ????????????# #??# #?????????# ## +???????? | | ????????????# #??# #?????????####### ##??????? | +----------------------------------------------------+ Best States ------------- Heat Dissipation 56 Energy Generation 23 Energy Capacity 1100 Matter Stores 300 Matter Capacity 300 Sight Range 18 Terrain Scan Density 10 Additional Mass Support 12 EM Shielding 2 Corruption Block 8 Armor Coverage 1200 Resistance: TH 25 Resistance: EM 20 Core Shielding 20 Propulsion Shielding 33 Evasion (%) 66 Targeting Accuracy 14 Target Analysis 5 Armor Integrity Analysis 30 Recoil Reduction 12 Matter Filtering 30 Offensive Hacking 20 Defensive Hacking 24 Item Schematics ----------------- Hacking Suite | -9/Materials | Scanalyzed Lgt. Deuterium Engine | -9/Materials | Scanalyzed Imp. Assault Rifle | -8/Materials | Scanalyzed Lgt. Nuclear Core | -8/Materials | Scanalyzed VTOL Module | -8/Materials | Scanalyzed Hpw. Tractor Beam | -8/Materials | Scanalyzed Field Propulsion Drive | -8/Materials | Scanalyzed KE Penetrator | -8/Materials | Scanalyzed Lyr. Heavy Armor Plating | -8/Materials | Scanalyzed Hrd. Medium Armor Plating | -7/Factory | Scanalyzed System Restoration Module | -7/Zion | Archive Force Field | -7/Zion | Archive Mak. Terrain Scan Processor | -7/Zion | Archive Bore Cannon | -7/Zion | Archive Hvy. Missile Launcher | -7/Zion | Archive Arm. Leg | -7/Zion | Archive Adv. ECM Suite | -7/Zion | Archive Hvy. Shock Bomb Launcher | -7/Zion | Archive Antigrav System | -7/Zion | Archive Imp. Salvage Targeting Computer | -7/Zion | Archive Imp. Medium Treads | -7/Zion | Archive Imp. Shield Generator | -7/Zion | Archive Imp. Core Shielding | -7/Zion | Archive Beamcaster | -7/Zion | Archive Mak. Axe | -7/Zion | Archive Imp. Cesium-ion Thruster | -6/Factory | Scanalyzed Hvy. Assault Rifle | -6/Factory | Scanalyzed Enh. Nuclear Core | -6/Factory | Scanalyzed Cld. Plasma Cannon | -6/Factory | Scanalyzed Imp. Reaction Control System | -6/Factory | Scanalyzed Micro-nuke Launcher | -6/Factory | Scanalyzed Robot Schematics ------------------ T-07 Excavator | -7/Zion | Archive S-27 Virus | -7/Zion | Archive Y-72 Warden | -7/Zion | Archive R-06 Scavenger | -7/Zion | Archive Fabricated ------------ Field Propulsion Drive | x2 | -7/Factory Field Propulsion Drive | x2 | -7/Factory Field Propulsion Drive | x2 | -7/Factory Y-72 Warden | x2 | -6/Factory B-48 Gladiator | x3 | -6/Factory | Preloaded Alien Tech Used ----------------- None Achievements -------------- None Challenges ------------ None Game ------ Seed ActuatorNullAccelerator Manual? 0 Play Time 05:57:29 Cumulative 302.0 hours Start 2024.05.08 @ 09:47:34 End 2024.05.10 @ 12:31:51 Sessions 5 Manual Loads 0 Difficulty Rogue Special Mode None Game No. 120 Rogue 120 Adventurer 0 Explorer 0 Win Type - Total 1 Types 0/0/1/0/0/0/0/0/0 Lore% 66 Gallery% 74 Achievement% 59 Wizard Run 0 Options --------- Layout 0 ASCII 0 Keyboard 1 Movement Arrows Keybinds 0 Fullscreen 1 Font 12/Proggy Map View 83x54 Zoom Use 0% Tactical HUD 1 Map Filters NONE Filters NONE Steam 0 RUN: 91e77687-9ae3-4cfb-93ff-a6f44058657f